[Event "Titled Tuesday Blitz August 22 Early 2023"]
[White "Hnydiuk, Aleksander"]
[Black "Cherniaiev, Tykhon"]
[WhiteFideId "1109057"]
[BlackFideId "14182360"]
[WhiteElo "2561"]
[BlackElo "2791"]
[Result "0-1"]
[Round "4"]
[TimeControl "180+1"]
[Date "2023.08.22"]
[WhiteClock "0:01:39"]
[BlackClock "0:02:07"]
[Board "58"]

1. e4 {[%clk 0:03:00]}  e5 {[%clk 0:03:00]} 2. Nf3 {[%clk 0:03:00]}  Nc6 {[%clk 0:03:00]} 3. d4 {[%clk 0:03:00]}  exd4 {[%clk 0:03:00]} 4. Nxd4 {[%clk 0:03:01]}  Nf6 {[%clk 0:03:01]} 5. Nxc6 {[%clk 0:03:00]}  bxc6 {[%clk 0:03:02]} 6. Qe2 {[%clk 0:03:01]}  Qe7 {[%clk 0:02:54]} 7. Nc3 {[%clk 0:02:59]}  d6 {[%clk 0:02:44]} 8. Bg5 {[%clk 0:02:56]}  h6 {[%clk 0:02:38]} 9. Bh4 {[%clk 0:02:54]}  g5 {[%clk 0:02:36]} 10. Bg3 {[%clk 0:02:54]}  Bg7 {[%clk 0:02:37]} 11. O-O-O {[%clk 0:02:52]}  O-O {[%clk 0:02:31]} 12. f3 {[%clk 0:02:47]}  Rb8 {[%clk 0:02:25]} 13. Qd2 {[%clk 0:02:37]}  d5 {[%clk 0:02:16]} 14. Bd3 {[%clk 0:02:20]}  Qb4 {[%clk 0:02:10]} 15. b3 {[%clk 0:01:39]}  Nxe4 {[%clk 0:02:07]} 0-1


[Site "https://www.chess.com"]

[Event "Titled Tuesday Blitz August 22 Early 2023"]
[White "Kushko, Dmitriy"]
[Black "FoxOnTheRun97"]
[WhiteFideId "14162261"]
[WhiteElo "2768"]
[BlackElo "2555"]
[Result "1-0"]
[Round "4"]
[TimeControl "180+1"]
[Date "2023.08.22"]
[WhiteClock "0:00:52"]
[BlackClock "0:00:21"]
[Board "63"]

1. Nf3 {[%clk 0:03:00]}  Nf6 {[%clk 0:02:58]} 2. g3 {[%clk 0:03:00]}  d5 {[%clk 0:02:58]} 3. Bg2 {[%clk 0:03:00]}  Bf5 {[%clk 0:02:58]} 4. O-O {[%clk 0:03:00]}  h6 {[%clk 0:02:58]} 5. c4 {[%clk 0:03:00]}  c6 {[%clk 0:02:55]} 6. Qb3 {[%clk 0:03:00]}  Qb6 {[%clk 0:02:55]} 7. d3 {[%clk 0:03:00]}  e6 {[%clk 0:02:54]} 8. cxd5 {[%clk 0:03:00]}  Qxb3 {[%clk 0:02:47]} 9. axb3 {[%clk 0:02:59]}  exd5 {[%clk 0:02:48]} 10. Bd2 {[%clk 0:02:56]}  Nbd7 {[%clk 0:02:46]} 11. b4 {[%clk 0:02:55]}  Bd6 {[%clk 0:02:40]} 12. Nd4 {[%clk 0:02:43]}  Bg6 {[%clk 0:02:35]} 13. Bc3 {[%clk 0:02:43]}  O-O {[%clk 0:02:32]} 14. Nd2 {[%clk 0:02:43]}  Rfe8 {[%clk 0:02:31]} 15. Rfe1 {[%clk 0:02:42]}  a6 {[%clk 0:02:23]} 16. h3 {[%clk 0:02:41]}  Re7 {[%clk 0:02:15]} 17. N2b3 {[%clk 0:02:38]}  Rae8 {[%clk 0:02:00]} 18. Na5 {[%clk 0:02:35]}  Nb6 {[%clk 0:02:00]} 19. f4 {[%clk 0:02:30]}  Nc8 {[%clk 0:01:58]} 20. Kf2 {[%clk 0:02:28]}  Bb8 {[%clk 0:01:56]} 21. Bf3 {[%clk 0:02:24]}  Nd6 {[%clk 0:01:54]} 22. g4 {[%clk 0:02:17]}  Bh7 {[%clk 0:01:47]} 23. Nab3 {[%clk 0:02:09]}  Nd7 {[%clk 0:01:44]} 24. h4 {[%clk 0:02:03]}  f5 {[%clk 0:01:36]} 25. g5 {[%clk 0:01:55]}  Bg6 {[%clk 0:01:36]} 26. h5 {[%clk 0:01:47]}  Bf7 {[%clk 0:01:36]} 27. gxh6 {[%clk 0:01:35]}  gxh6 {[%clk 0:01:37]} 28. Rg1+ {[%clk 0:01:35]}  Kh7 {[%clk 0:01:35]} 29. Nxc6 {[%clk 0:01:30]}  bxc6 {[%clk 0:01:01]} 30. Rg7+ {[%clk 0:01:29]}  Kh8 {[%clk 0:01:02]} 31. Rag1 {[%clk 0:00:54]}  Ba7+ {[%clk 0:01:00]} 32. Nc5 {[%clk 0:00:53]}  d4 {[%clk 0:00:21]} 33. Bxd4 {[%clk 0:00:52]} 1-0


[Site "https://www.chess.com"]

[Event "Titled Tuesday Blitz August 22 Early 2023"]
[White "Starozhilov, Leonid"]
[Black "Martinez Reyes, Pedro Ramon"]
[WhiteFideId "14106752"]
[BlackFideId "3901807"]
[WhiteElo "2766"]
[BlackElo "2552"]
[Result "1/2-1/2"]
[Round "4"]
[TimeControl "180+1"]
[Date "2023.08.22"]
[WhiteClock "0:00:06"]
[BlackClock "0:00:03"]
[Board "64"]

1. e4 {[%clk 0:03:00]}  c5 {[%clk 0:02:56]} 2. Nf3 {[%clk 0:03:00]}  Nc6 {[%clk 0:02:53]} 3. Bb5 {[%clk 0:03:01]}  g6 {[%clk 0:02:52]} 4. O-O {[%clk 0:02:56]}  Bg7 {[%clk 0:02:52]} 5. Nc3 {[%clk 0:02:56]}  Nf6 {[%clk 0:02:43]} 6. Bxc6 {[%clk 0:02:56]}  dxc6 {[%clk 0:02:39]} 7. d3 {[%clk 0:02:55]}  Qc7 {[%clk 0:02:30]} 8. h3 {[%clk 0:02:56]}  e5 {[%clk 0:02:29]} 9. Be3 {[%clk 0:02:55]}  b6 {[%clk 0:02:28]} 10. Qd2 {[%clk 0:02:55]}  Nh5 {[%clk 0:02:28]} 11. Bh6 {[%clk 0:02:55]}  O-O {[%clk 0:02:28]} 12. Bxg7 {[%clk 0:02:52]}  Kxg7 {[%clk 0:02:28]} 13. Rae1 {[%clk 0:02:51]}  h6 {[%clk 0:02:16]} 14. b3 {[%clk 0:02:50]}  Be6 {[%clk 0:02:14]} 15. Ne2 {[%clk 0:02:48]}  Rad8 {[%clk 0:02:13]} 16. Qc3 {[%clk 0:02:45]}  f6 {[%clk 0:02:02]} 17. a4 {[%clk 0:02:42]}  a5 {[%clk 0:02:01]} 18. Nh2 {[%clk 0:02:39]}  g5 {[%clk 0:01:59]} 19. Ng4 {[%clk 0:02:39]}  Nf4 {[%clk 0:01:56]} 20. Ng3 {[%clk 0:02:33]}  Qd7 {[%clk 0:01:45]} 21. Ne3 {[%clk 0:02:20]}  Kh7 {[%clk 0:01:21]} 22. Ngf5 {[%clk 0:02:18]}  Rg8 {[%clk 0:01:15]} 23. Kh2 {[%clk 0:02:11]}  Bxf5 {[%clk 0:01:09]} 24. Nxf5 {[%clk 0:02:07]}  Ne6 {[%clk 0:01:10]} 25. g3 {[%clk 0:02:01]}  Nd4 {[%clk 0:01:10]} 26. Nxd4 {[%clk 0:01:59]}  cxd4 {[%clk 0:00:53]} 27. Qc4 {[%clk 0:01:52]}  Rg7 {[%clk 0:00:47]} 28. b4 {[%clk 0:01:39]}  b5 {[%clk 0:00:39]} 29. Qc5 {[%clk 0:01:35]}  axb4 {[%clk 0:00:37]} 30. a5 {[%clk 0:01:27]}  Ra8 {[%clk 0:00:33]} 31. Ra1 {[%clk 0:01:26]}  Ra6 {[%clk 0:00:33]} 32. Qxb4 {[%clk 0:01:23]}  Qe7 {[%clk 0:00:31]} 33. Qb3 {[%clk 0:01:21]}  Qf7 {[%clk 0:00:27]} 34. Qb2 {[%clk 0:01:20]}  Qa7 {[%clk 0:00:26]} 35. c3 {[%clk 0:01:12]}  Rd7 {[%clk 0:00:21]} 36. Kg2 {[%clk 0:00:58]}  dxc3 {[%clk 0:00:20]} 37. Qxc3 {[%clk 0:00:59]}  Qd4 {[%clk 0:00:20]} 38. Qc1 {[%clk 0:00:36]}  Qxd3 {[%clk 0:00:19]} 39. Re1 {[%clk 0:00:36]}  Qc4 {[%clk 0:00:18]} 40. Qxc4 {[%clk 0:00:34]}  bxc4 {[%clk 0:00:18]} 41. Rec1 {[%clk 0:00:34]}  Rd4 {[%clk 0:00:18]} 42. Kf3 {[%clk 0:00:33]}  Rd3+ {[%clk 0:00:14]} 43. Ke2 {[%clk 0:00:31]}  Rd4 {[%clk 0:00:15]} 44. Ke3 {[%clk 0:00:27]}  Kg7 {[%clk 0:00:15]} 45. Ra4 {[%clk 0:00:25]}  Kf7 {[%clk 0:00:14]} 46. Rcxc4 {[%clk 0:00:24]}  Rxc4 {[%clk 0:00:09]} 47. Rxc4 {[%clk 0:00:25]}  Rxa5 {[%clk 0:00:09]} 48. Rxc6 {[%clk 0:00:26]}  Kg6 {[%clk 0:00:10]} 49. Kf3 {[%clk 0:00:24]}  h5 {[%clk 0:00:09]} 50. h4 {[%clk 0:00:21]}  Ra3+ {[%clk 0:00:09]} 51. Kg2 {[%clk 0:00:21]}  g4 {[%clk 0:00:10]} 52. Rc8 {[%clk 0:00:19]}  Ra4 {[%clk 0:00:10]} 53. Rg8+ {[%clk 0:00:17]}  Kf7 {[%clk 0:00:10]} 54. Rh8 {[%clk 0:00:17]}  Kg6 {[%clk 0:00:10]} 55. Rg8+ {[%clk 0:00:17]}  Kh7 {[%clk 0:00:11]} 56. Rf8 {[%clk 0:00:18]}  Kg7 {[%clk 0:00:11]} 57. Rd8 {[%clk 0:00:16]}  Rxe4 {[%clk 0:00:12]} 58. Rd2 {[%clk 0:00:16]}  Rb4 {[%clk 0:00:12]} 59. Rc2 {[%clk 0:00:16]}  Kg6 {[%clk 0:00:12]} 60. Rc8 {[%clk 0:00:16]}  Rb2 {[%clk 0:00:11]} 61. Kf1 {[%clk 0:00:16]}  e4 {[%clk 0:00:11]} 62. Rc6 {[%clk 0:00:14]}  Kf5 {[%clk 0:00:11]} 63. Rc5+ {[%clk 0:00:14]}  Kg6 {[%clk 0:00:11]} 64. Rc6 {[%clk 0:00:14]}  Kf7 {[%clk 0:00:11]} 65. Kg1 {[%clk 0:00:12]}  Rb7 {[%clk 0:00:09]} 66. Kf1 {[%clk 0:00:12]}  Re7 {[%clk 0:00:09]} 67. Ke2 {[%clk 0:00:12]}  Re6 {[%clk 0:00:10]} 68. Rc5 {[%clk 0:00:12]}  Kg6 {[%clk 0:00:10]} 69. Ke3 {[%clk 0:00:11]}  f5 {[%clk 0:00:10]} 70. Ra5 {[%clk 0:00:07]}  Rd6 {[%clk 0:00:10]} 71. Kf4 {[%clk 0:00:05]}  Rf6 {[%clk 0:00:06]} 72. Rb5 {[%clk 0:00:04]}  Rf7 {[%clk 0:00:03]} 73. Rb6+ {[%clk 0:00:04]}  Rf6 {[%clk 0:00:04]} 74. Rb5 {[%clk 0:00:03]}  Rf7 {[%clk 0:00:04]} 75. Rb6+ {[%clk 0:00:04]}  Kg7 {[%clk 0:00:04]} 76. Kg5 {[%clk 0:00:02]}  f4 {[%clk 0:00:04]} 77. gxf4 {[%clk 0:00:03]}  e3 {[%clk 0:00:04]} 78. fxe3 {[%clk 0:00:03]}  g3 {[%clk 0:00:05]} 79. Rg6+ {[%clk 0:00:03]}  Kh7 {[%clk 0:00:05]} 80. Rh6+ {[%clk 0:00:03]}  Kg7 {[%clk 0:00:05]} 81. Kxh5 {[%clk 0:00:02]}  Rf5+ {[%clk 0:00:05]} 82. Kg4 {[%clk 0:00:02]}  Kxh6 {[%clk 0:00:05]} 83. Kxg3 {[%clk 0:00:02]}  Ra5 {[%clk 0:00:05]} 84. Kg4 {[%clk 0:00:02]}  Kg6 {[%clk 0:00:06]} 85. e4 {[%clk 0:00:03]}  Ra4 {[%clk 0:00:06]} 86. h5+ {[%clk 0:00:04]}  Kh6 {[%clk 0:00:06]} 87. e5 {[%clk 0:00:04]}  Ra1 {[%clk 0:00:07]} 88. Kf5 {[%clk 0:00:04]}  Kxh5 {[%clk 0:00:06]} 89. Kf6 {[%clk 0:00:05]}  Rf1 {[%clk 0:00:05]} 90. e6 {[%clk 0:00:04]}  Rxf4+ {[%clk 0:00:05]} 91. Kg7 {[%clk 0:00:04]}  Re4 {[%clk 0:00:04]} 92. Kf7 {[%clk 0:00:05]}  Rf4+ {[%clk 0:00:05]} 93. Kg7 {[%clk 0:00:05]}  Rg4+ {[%clk 0:00:05]} 94. Kf7 {[%clk 0:00:06]}  Rf4+ {[%clk 0:00:03]} 95. Kg7 {[%clk 0:00:06]} 1/2-1/2


[Site "https://www.chess.com"]

[Event "Titled Tuesday Blitz August 22 Early 2023"]
[White "To, Nhat Minh"]
[Black "Orozbaev, Eldiar"]
[WhiteFideId "729019"]
[BlackFideId "13802240"]
[WhiteElo "2551"]
[BlackElo "2751"]
[Result "0-1"]
[Round "4"]
[TimeControl "180+1"]
[Date "2023.08.22"]
[WhiteClock "0:00:00"]
[BlackClock "0:01:28"]
[Board "65"]

1. e4 {[%clk 0:03:00]}  e6 {[%clk 0:02:58]} 2. d4 {[%clk 0:03:00]}  d5 {[%clk 0:02:59]} 3. Nc3 {[%clk 0:03:00]}  Nf6 {[%clk 0:02:59]} 4. e5 {[%clk 0:03:00]}  Nfd7 {[%clk 0:02:57]} 5. f4 {[%clk 0:03:01]}  c5 {[%clk 0:02:57]} 6. Nf3 {[%clk 0:03:01]}  Nc6 {[%clk 0:02:57]} 7. Be3 {[%clk 0:03:02]}  Qb6 {[%clk 0:02:56]} 8. Na4 {[%clk 0:03:02]}  Qa5+ {[%clk 0:02:54]} 9. c3 {[%clk 0:03:02]}  cxd4 {[%clk 0:02:55]} 10. b4 {[%clk 0:03:03]}  Nxb4 {[%clk 0:02:56]} 11. cxb4 {[%clk 0:03:04]}  Bxb4+ {[%clk 0:02:56]} 12. Bd2 {[%clk 0:03:04]}  Bxd2+ {[%clk 0:02:57]} 13. Nxd2 {[%clk 0:03:05]}  b6 {[%clk 0:02:58]} 14. Nb2 {[%clk 0:02:11]}  Nc5 {[%clk 0:02:56]} 15. Nd3 {[%clk 0:01:55]}  Ba6 {[%clk 0:02:55]} 16. Nxc5 {[%clk 0:01:53]}  bxc5 {[%clk 0:02:56]} 17. Bxa6 {[%clk 0:01:45]}  Qxa6 {[%clk 0:02:57]} 18. Qe2 {[%clk 0:01:44]}  d3 {[%clk 0:02:57]} 19. Qe3 {[%clk 0:01:39]}  c4 {[%clk 0:02:56]} 20. O-O {[%clk 0:01:33]}  Qb6 {[%clk 0:02:51]} 21. Qf2 {[%clk 0:01:32]}  Qxf2+ {[%clk 0:02:48]} 22. Kxf2 {[%clk 0:01:33]}  O-O-O {[%clk 0:02:45]} 23. Rfc1 {[%clk 0:01:24]}  f6 {[%clk 0:02:37]} 24. Rab1 {[%clk 0:01:20]}  Rd7 {[%clk 0:02:29]} 25. Ke3 {[%clk 0:01:10]}  fxe5 {[%clk 0:02:25]} 26. fxe5 {[%clk 0:01:11]}  Rc7 {[%clk 0:02:25]} 27. Nf3 {[%clk 0:01:08]}  Rc6 {[%clk 0:02:18]} 28. Nd4 {[%clk 0:01:05]}  Ra6 {[%clk 0:02:19]} 29. Nb5 {[%clk 0:01:01]}  Rxa2 {[%clk 0:02:13]} 30. Nd6+ {[%clk 0:01:00]}  Kd7 {[%clk 0:02:08]} 31. Ra1 {[%clk 0:00:38]}  Rxa1 {[%clk 0:02:03]} 32. Rxa1 {[%clk 0:00:39]}  Ra8 {[%clk 0:02:02]} 33. Ra6 {[%clk 0:00:31]}  Rb8 {[%clk 0:01:56]} 34. Rxa7+ {[%clk 0:00:30]}  Kc6 {[%clk 0:01:55]} 35. Ra2 {[%clk 0:00:09]}  Kc5 {[%clk 0:01:52]} 36. h4 {[%clk 0:00:04]}  Rb1 {[%clk 0:01:47]} 37. g4 {[%clk 0:00:03]}  d4+ {[%clk 0:01:47]} 38. Kd2 {[%clk 0:00:03]}  Rg1 {[%clk 0:01:39]} 39. Ra5+ {[%clk 0:00:02]}  Kb4 {[%clk 0:01:39]} 40. Ra7 {[%clk 0:00:03]}  Rg2+ {[%clk 0:01:38]} 41. Ke1 {[%clk 0:00:02]}  d2+ {[%clk 0:01:35]} 42. Kd1 {[%clk 0:00:02]}  c3 {[%clk 0:01:31]} 43. Rb7+ {[%clk 0:00:02]}  Ka5 {[%clk 0:01:30]} 44. Kc2 {[%clk 0:00:01]}  Rg1 {[%clk 0:01:28]} 45. Nc4+ {[%clk 0:00:00]}  Ka6 {[%clk 0:01:28]} 0-1


[Site "https://www.chess.com"]

[Event "Titled Tuesday Blitz August 22 Early 2023"]
[White "Kashefi, Amir Hosein"]
[Black "Koellner, Ruben Gideon"]
[WhiteFideId "12557935"]
[BlackFideId "12993093"]
[WhiteElo "2537"]
[BlackElo "2720"]
[Result "0-1"]
[Round "4"]
[TimeControl "180+1"]
[Date "2023.08.22"]
[WhiteClock "0:00:00"]
[BlackClock "0:00:20"]
[Board "69"]

1. d4 {[%clk 0:02:59]}  d6 {[%clk 0:03:00]} 2. Nf3 {[%clk 0:02:58]}  Nf6 {[%clk 0:03:00]} 3. g3 {[%clk 0:02:58]}  Nbd7 {[%clk 0:03:00]} 4. Bg2 {[%clk 0:02:58]}  e5 {[%clk 0:03:01]} 5. O-O {[%clk 0:02:55]}  Be7 {[%clk 0:03:01]} 6. c4 {[%clk 0:02:48]}  O-O {[%clk 0:03:01]} 7. Nc3 {[%clk 0:02:48]}  c6 {[%clk 0:03:01]} 8. Qc2 {[%clk 0:02:46]}  a6 {[%clk 0:03:00]} 9. a4 {[%clk 0:02:40]}  a5 {[%clk 0:03:00]} 10. b3 {[%clk 0:02:28]}  Qc7 {[%clk 0:03:00]} 11. Bb2 {[%clk 0:02:28]}  Re8 {[%clk 0:03:01]} 12. Rad1 {[%clk 0:02:27]}  Nb8 {[%clk 0:03:01]} 13. dxe5 {[%clk 0:02:16]}  dxe5 {[%clk 0:03:01]} 14. Ne4 {[%clk 0:02:13]}  Nbd7 {[%clk 0:02:50]} 15. Nh4 {[%clk 0:02:09]}  Nxe4 {[%clk 0:02:46]} 16. Bxe4 {[%clk 0:02:07]}  Bxh4 {[%clk 0:02:38]} 17. Bxh7+ {[%clk 0:01:41]}  Kh8 {[%clk 0:02:38]} 18. gxh4 {[%clk 0:01:42]}  g6 {[%clk 0:02:39]} 19. Bxg6 {[%clk 0:01:31]}  fxg6 {[%clk 0:02:40]} 20. Kh1 {[%clk 0:01:25]}  Nf8 {[%clk 0:02:40]} 21. f4 {[%clk 0:01:20]}  Qh7 {[%clk 0:02:19]} 22. Bxe5+ {[%clk 0:01:12]}  Kg8 {[%clk 0:02:19]} 23. Rg1 {[%clk 0:01:05]}  Kf7 {[%clk 0:02:10]} 24. e4 {[%clk 0:00:48]}  Qxh4 {[%clk 0:02:08]} 25. Rd6 {[%clk 0:00:38]}  Be6 {[%clk 0:01:43]} 26. f5 {[%clk 0:00:37]}  Bxf5 {[%clk 0:01:32]} 27. exf5 {[%clk 0:00:20]}  Rxe5 {[%clk 0:01:32]} 28. fxg6+ {[%clk 0:00:16]}  Kg7 {[%clk 0:01:32]} 29. Rd2 {[%clk 0:00:09]}  Qe4+ {[%clk 0:01:32]} 30. Qxe4 {[%clk 0:00:09]}  Rxe4 {[%clk 0:01:33]} 31. Rf2 {[%clk 0:00:07]}  Nxg6 {[%clk 0:01:28]} 32. Rf5 {[%clk 0:00:04]}  Rh8 {[%clk 0:01:11]} 33. Rxa5 {[%clk 0:00:04]}  Re2 {[%clk 0:01:01]} 34. Rg2 {[%clk 0:00:04]}  Rxg2 {[%clk 0:00:59]} 35. Kxg2 {[%clk 0:00:05]}  Nf4+ {[%clk 0:00:55]} 36. Kg3 {[%clk 0:00:04]}  Ne6 {[%clk 0:00:51]} 37. Ra7 {[%clk 0:00:03]}  Rb8 {[%clk 0:00:50]} 38. a5 {[%clk 0:00:04]}  Nc7 {[%clk 0:00:47]} 39. Kf4 {[%clk 0:00:02]}  Kf6 {[%clk 0:00:48]} 40. b4 {[%clk 0:00:02]}  Ke6 {[%clk 0:00:47]} 41. h4 {[%clk 0:00:02]}  Kd6 {[%clk 0:00:47]} 42. h5 {[%clk 0:00:02]}  Ne6+ {[%clk 0:00:45]} 43. Kf5 {[%clk 0:00:03]}  Nd4+ {[%clk 0:00:44]} 44. Kg6 {[%clk 0:00:03]}  c5 {[%clk 0:00:29]} 45. b5 {[%clk 0:00:03]}  Nf3 {[%clk 0:00:22]} 46. a6 {[%clk 0:00:02]}  bxa6 {[%clk 0:00:21]} 47. Rxa6+ {[%clk 0:00:02]}  Ke5 {[%clk 0:00:20]} 48. h6 {[%clk 0:00:00]}  Kd4 {[%clk 0:00:20]} 0-1


[Site "https://www.chess.com"]

[Event "Titled Tuesday Blitz August 22 Early 2023"]
[White "Martin Carmona, Gaston Manuel"]
[Black "Karthik Rajaa"]
[WhiteFideId "22284567"]
[BlackFideId "25035215"]
[WhiteElo "2528"]
[BlackElo "2704"]
[Result "0-1"]
[Round "4"]
[TimeControl "180+1"]
[Date "2023.08.22"]
[WhiteClock "0:00:16"]
[BlackClock "0:00:28"]
[Board "74"]

1. e4 {[%clk 0:02:54]}  c6 {[%clk 0:02:58]} 2. Nc3 {[%clk 0:02:52]}  d5 {[%clk 0:02:59]} 3. Nf3 {[%clk 0:02:52]}  dxe4 {[%clk 0:02:57]} 4. Nxe4 {[%clk 0:02:52]}  Nf6 {[%clk 0:02:57]} 5. Qe2 {[%clk 0:02:53]}  Na6 {[%clk 0:02:57]} 6. b3 {[%clk 0:02:45]}  Nb4 {[%clk 0:02:35]} 7. Qc4 {[%clk 0:02:24]}  e6 {[%clk 0:02:13]} 8. a3 {[%clk 0:02:03]}  b5 {[%clk 0:02:11]} 9. Nxf6+ {[%clk 0:02:02]}  Qxf6 {[%clk 0:02:10]} 10. Qc3 {[%clk 0:02:01]}  Qxc3 {[%clk 0:02:10]} 11. dxc3 {[%clk 0:02:02]}  Nxc2+ {[%clk 0:02:10]} 12. Kd1 {[%clk 0:01:55]}  Nxa1 {[%clk 0:02:11]} 13. Nd2 {[%clk 0:01:56]}  a5 {[%clk 0:01:42]} 14. Bb2 {[%clk 0:01:56]}  Nxb3 {[%clk 0:01:42]} 15. Nxb3 {[%clk 0:01:54]}  Bd7 {[%clk 0:01:33]} 16. Be2 {[%clk 0:01:53]}  a4 {[%clk 0:01:32]} 17. Nd4 {[%clk 0:01:52]}  e5 {[%clk 0:01:32]} 18. Nc2 {[%clk 0:01:48]}  Bc5 {[%clk 0:01:32]} 19. Rf1 {[%clk 0:01:43]}  O-O-O {[%clk 0:01:32]} 20. Kc1 {[%clk 0:01:43]}  Be6 {[%clk 0:01:29]} 21. Ne3 {[%clk 0:01:41]}  Bxe3+ {[%clk 0:01:28]} 22. fxe3 {[%clk 0:01:42]}  f6 {[%clk 0:01:29]} 23. Kc2 {[%clk 0:01:42]}  Bc4 {[%clk 0:01:25]} 24. Rf2 {[%clk 0:01:42]}  Bxe2 {[%clk 0:01:24]} 25. Rxe2 {[%clk 0:01:43]}  Rd7 {[%clk 0:01:23]} 26. e4 {[%clk 0:01:43]}  Rhd8 {[%clk 0:01:22]} 27. Bc1 {[%clk 0:01:44]}  Rd1 {[%clk 0:01:12]} 28. Be3 {[%clk 0:01:43]}  Ra1 {[%clk 0:01:10]} 29. Bc1 {[%clk 0:01:39]}  Kb7 {[%clk 0:01:01]} 30. Kb2 {[%clk 0:01:38]}  Rxc1 {[%clk 0:01:02]} 31. Kxc1 {[%clk 0:01:39]}  Kb6 {[%clk 0:01:03]} 32. Kc2 {[%clk 0:01:40]}  Kc5 {[%clk 0:01:03]} 33. Re3 {[%clk 0:01:32]}  Kc4 {[%clk 0:01:00]} 34. Rg3 {[%clk 0:01:31]}  Rd7 {[%clk 0:01:00]} 35. Rh3 {[%clk 0:01:29]}  h6 {[%clk 0:01:00]} 36. Rg3 {[%clk 0:01:02]}  c5 {[%clk 0:00:59]} 37. h3 {[%clk 0:01:00]}  b4 {[%clk 0:00:59]} 38. cxb4 {[%clk 0:01:00]}  cxb4 {[%clk 0:01:00]} 39. axb4 {[%clk 0:01:01]}  Kxb4 {[%clk 0:01:00]} 40. Kb2 {[%clk 0:00:38]}  a3+ {[%clk 0:00:56]} 41. Kb1 {[%clk 0:00:38]}  Rd1+ {[%clk 0:00:53]} 42. Ka2 {[%clk 0:00:36]}  Rd2+ {[%clk 0:00:51]} 43. Ka1 {[%clk 0:00:33]}  g5 {[%clk 0:00:48]} 44. Rf3 {[%clk 0:00:33]}  Rxg2 {[%clk 0:00:37]} 45. Rxf6 {[%clk 0:00:33]}  Kc3 {[%clk 0:00:29]} 46. Rxh6 {[%clk 0:00:30]}  Kd4 {[%clk 0:00:29]} 47. h4 {[%clk 0:00:22]}  g4 {[%clk 0:00:29]} 48. h5 {[%clk 0:00:19]}  Kxe4 {[%clk 0:00:28]} 49. Rg6 {[%clk 0:00:20]}  Kf5 {[%clk 0:00:28]} 50. Rg8 {[%clk 0:00:18]}  Rh2 {[%clk 0:00:28]} 51. h6 {[%clk 0:00:17]}  Rxh6 {[%clk 0:00:28]} 52. Ka2 {[%clk 0:00:17]}  Rg6 {[%clk 0:00:27]} 53. Rf8+ {[%clk 0:00:17]}  Ke4 {[%clk 0:00:27]} 54. Kxa3 {[%clk 0:00:16]}  g3 {[%clk 0:00:28]} 0-1


[Site "https://www.chess.com"]

[Event "Titled Tuesday Blitz August 22 Early 2023"]
[White "Kavutskiy, Konstantin"]
[Black "ATM622"]
[WhiteFideId "2026384"]
[WhiteElo "2682"]
[BlackElo "2520"]
[Result "1-0"]
[Round "4"]
[TimeControl "180+1"]
[Date "2023.08.22"]
[WhiteClock "0:01:21"]
[BlackClock "0:00:17"]
[Board "80"]

1. e4 {[%clk 0:03:00]}  c6 {[%clk 0:02:59]} 2. d4 {[%clk 0:02:59]}  d5 {[%clk 0:03:00]} 3. exd5 {[%clk 0:02:59]}  cxd5 {[%clk 0:03:00]} 4. Bd3 {[%clk 0:02:57]}  Nc6 {[%clk 0:02:58]} 5. c3 {[%clk 0:02:57]}  Qc7 {[%clk 0:02:58]} 6. h3 {[%clk 0:02:55]}  g6 {[%clk 0:02:57]} 7. Qc2 {[%clk 0:02:54]}  Bg7 {[%clk 0:02:56]} 8. Nf3 {[%clk 0:02:52]}  Nh6 {[%clk 0:02:52]} 9. O-O {[%clk 0:02:49]}  O-O {[%clk 0:02:51]} 10. Re1 {[%clk 0:02:46]}  Bf5 {[%clk 0:02:48]} 11. Bxh6 {[%clk 0:02:44]}  Bxd3 {[%clk 0:02:47]} 12. Qxd3 {[%clk 0:02:44]}  Bxh6 {[%clk 0:02:48]} 13. Nbd2 {[%clk 0:02:41]}  e6 {[%clk 0:02:44]} 14. h4 {[%clk 0:02:39]}  Qf4 {[%clk 0:02:27]} 15. g3 {[%clk 0:02:37]}  Qf5 {[%clk 0:02:18]} 16. Qxf5 {[%clk 0:02:32]}  gxf5 {[%clk 0:02:18]} 17. Kg2 {[%clk 0:02:28]}  f4 {[%clk 0:02:15]} 18. g4 {[%clk 0:02:25]}  Kh8 {[%clk 0:02:08]} 19. Kh3 {[%clk 0:02:20]}  Rae8 {[%clk 0:01:41]} 20. Nb3 {[%clk 0:02:13]}  b6 {[%clk 0:01:39]} 21. Nc1 {[%clk 0:02:11]}  Ne7 {[%clk 0:00:58]} 22. Nd3 {[%clk 0:02:09]}  Ng6 {[%clk 0:00:58]} 23. h5 {[%clk 0:02:01]}  Ne7 {[%clk 0:00:57]} 24. g5 {[%clk 0:02:00]}  Bg7 {[%clk 0:00:55]} 25. h6 {[%clk 0:02:00]}  Bxh6 {[%clk 0:00:55]} 26. gxh6 {[%clk 0:02:00]}  Nf5 {[%clk 0:00:48]} 27. Nxf4 {[%clk 0:01:55]}  Nxh6 {[%clk 0:00:48]} 28. Ne5 {[%clk 0:01:49]}  f6 {[%clk 0:00:43]} 29. Ng4 {[%clk 0:01:45]}  Nxg4 {[%clk 0:00:43]} 30. Kxg4 {[%clk 0:01:45]}  e5 {[%clk 0:00:32]} 31. Nxd5 {[%clk 0:01:45]}  f5+ {[%clk 0:00:32]} 32. Kf3 {[%clk 0:01:43]}  e4+ {[%clk 0:00:30]} 33. Kf4 {[%clk 0:01:44]}  Rd8 {[%clk 0:00:29]} 34. Ne3 {[%clk 0:01:42]}  Rf7 {[%clk 0:00:27]} 35. d5 {[%clk 0:01:41]}  Kg7 {[%clk 0:00:24]} 36. c4 {[%clk 0:01:39]}  Kf6 {[%clk 0:00:24]} 37. Nxf5 {[%clk 0:01:37]}  Rdf8 {[%clk 0:00:20]} 38. Rxe4 {[%clk 0:01:22]}  Kg6 {[%clk 0:00:17]} 39. Rg1+ {[%clk 0:01:21]} 1-0


[Site "https://www.chess.com"]